fUSD/lending_fUSD_20251120
["ID","MTS","AMOUNT","RATE_DAILY","PERIOD"]
[394531714,1763671832102,-268.66,0.00016573,2]
[394531715,1763671832112,-1670.98992888,0.0001662,2]
[394531716,1763671832122,-150.0,0.0001665,2]
[394531717,1763671832133,-166.66,0.00016701,2]
[394531718,1763671832143,-1288.18,0.00016705,2]
[394531719,1763671832153,-1670.98992888,0.0001678,2]
[394531720,1763671832162,-164.11479541,0.0001682,2]
[394531721,1763671832172,-268.66,0.00016847,2]
[394531722,1763671832181,-269.3965819,0.000169,2]
[394531723,1763671832190,-1670.98992888,0.0001694,2]
[394531724,1763671832200,-3417.3471006,0.00016956,2]
[394531725,1763671832211,-500.0,0.00016973,2]
[394531726,1763671832222,-500.0,0.00016973,2]
[394531727,1763671832232,-500.0,0.00016973,2]
[394531728,1763671832241,-500.0,0.00016973,2]
[394531729,1763671832251,-500.0,0.00016973,2]
[394531730,1763671832261,-178.99807806,0.00016973,2]
[394531731,1763671832271,-500.99618926,0.00016973,2]
[394531732,1763671832281,-500.0,0.00016973,2]
[394531733,1763671832291,-500.0,0.00016973,2]
[394531734,1763671832300,-500.0,0.00016973,2]
[394531735,1763671832311,-464.88935143,0.00016973,2]
[394531736,1763671832321,-500.0,0.00016973,2]
[394531737,1763671832330,-500.0,0.00016973,2]
[394531738,1763671832339,-616.01308641,0.00016973,2]
[394531739,1763671832350,-692.61338613,0.00016988,2]
[394531740,1763671832362,-439.27624447,0.00016988,2]
[394531741,1763671832371,-11510.6235842,0.00016988,2]
[394531742,1763671832380,-500.0,0.00016999,2]
[394531743,1763671832390,-173.74,0.00016999,2]
[394531744,1763671832399,-78088.97490308,0.00017,2]
[394531745,1763671832411,-508.82802674,0.00017,2]
[394531793,1763671837654,-3021.7136746,0.00017,2]
[394531794,1763671837665,-414.18025489,0.00017,2]
[394531812,1763671837955,1025.0,0.00042005,30]
[394531821,1763671839671,-3945.60812416,0.00017,2]
[394531822,1763671839682,-24417.68646364,0.00017,2]
[394531823,1763671839861,-433.39,0.00017,2]
[394531824,1763671839872,-268.4510001,0.00017,2]
[394531843,1763671844309,-8710.0,0.00017,2]
[394531844,1763671844321,-52044.6,0.00017,2]
[394531845,1763671844365,-426.20744144,0.00017,2]
[394531848,1763671845720,-18753.44434114,0.00017,2]
[394531849,1763671845903,-956.0,0.00017,2]
[394531850,1763671845920,-1882.92960493,0.00017,2]
[394531851,1763671845999,-761.5226901,0.00017,2]
[394531852,1763671846011,-1113.26019131,0.00017,2]
[394531853,1763671846110,-678.189999,0.00017,2]
[394531854,1763671846168,-4317.78509496,0.00017,2]
[394531855,1763671846179,-14787.49047847,0.00017,2]
[394531858,1763671866109,1421.0,0.00042005,30]
[394531859,1763671945382,854.0,0.00042005,30]
[394531865,1763672104830,426.43191686,0.00035616,120]
[394531866,1763672108400,247.999999,0.00035616,120]
[394531883,1763672241835,3603.98,0.00015816,2]
[394531892,1763672351034,1093.5,0.00016157,2]
[394531893,1763672351056,942.92,0.00016157,2]
[394531894,1763672494001,1362.821,0.00016088,2]
[394531895,1763672530137,170.09,0.00015816,2]
[394531932,1763672649538,151.0,0.0004201,50]
[394531969,1763672669733,151.0,0.0004201,50]
[394531977,1763672672510,151.0,0.0004201,50]
[394531987,1763672677389,151.0,0.0004201,50]
[394531992,1763672680516,151.0,0.0004201,50]
[394532016,1763672730255,151.0,0.0004201,50]
[394532018,1763672730555,151.0,0.0004201,50]
[394532037,1763672753292,151.0,0.0004201,50]
[394532038,1763672753601,151.0,0.0004201,50]
[394532042,1763672773204,188.532912,0.0004201,50]
[394532043,1763672779552,151.0,0.0004201,50]
[394532044,1763672793618,151.0,0.0004201,50]
[394532045,1763672793914,151.0,0.0004201,50]
[394532046,1763672794438,151.0,0.0004201,50]
[394532058,1763672809195,151.0,0.0004201,50]
[394532059,1763672809486,154.235253,0.0004201,50]
[394532077,1763672839007,911.16,0.00013699,2]
[394532078,1763672849730,151.0,0.0004201,50]
[394532079,1763672862590,151.0,0.0004201,30]
[394532080,1763672862896,151.0,0.0004201,30]
[394532082,1763672868025,151.0,0.0004201,50]
[394532083,1763672868317,151.0,0.0004201,50]
[394532096,1763672887300,151.0,0.0004201,50]
[394532097,1763672890595,151.0,0.0004201,50]
[394532098,1763672890888,151.0,0.0004201,50]
[394532099,1763672898218,151.0,0.0004201,50]
[394532100,1763672898517,151.0,0.0004201,50]
[394532101,1763672898914,151.0,0.0004201,50]
[394532102,1763672899196,151.0,0.0004201,50]
[394532110,1763672907827,151.0,0.0004201,50]
[394532111,1763672907946,151.0,0.0004201,50]
[394532112,1763672908239,151.0,0.0004201,50]
[394532114,1763672909168,158.528311,0.0004201,50]
[394532124,1763672923359,150.0,0.00015879,2]
[394532128,1763672950391,155.372816,0.0004201,50]
[394532150,1763672960646,164.572823,0.0004201,50]
[394532181,1763672969656,151.0,0.0004201,50]
[394532336,1763673031729,-300.0,0.00016199,2]
[394532337,1763673031739,-300.0,0.00016199,2]
[394532338,1763673031748,-1200.0,0.00016199,2]
[394532339,1763673031758,-150.0,0.000162,2]
[394532340,1763673031767,-150.0,0.000162,2]
[394532341,1763673031777,-150.0,0.000162,2]
[394532342,1763673031787,-150.0,0.000162,2]
[394532343,1763673031797,-150.0,0.000162,2]
[394532344,1763673031806,-150.0,0.000162,2]
[394532345,1763673031816,-150.0,0.000162,2]
[394532346,1763673031825,-292.95782628,0.000162,2]
[394532347,1763673031835,-304.41616689,0.000163,2]
[394532348,1763673031845,-180.42895222,0.000163,2]
[394532349,1763673031854,-10165.64,0.00016318,2]
[394532350,1763673031864,-180.42895222,0.00016318,2]
[394532351,1763673031873,-1489.20818139,0.00016373,2]
[394532352,1763673031884,-1072.9763763,0.00016373,2]
[394532353,1763673031893,-443.45136125,0.00016415,2]
[394532354,1763673031902,-550.0,0.00016415,2]
[394532355,1763673031911,-5244.6035,0.00016416,2]
[394532356,1763673031921,-7250.6,0.00016438,2]
[394532357,1763673031930,-400.47863262,0.00016473,2]
[394532359,1763673031939,-500.0,0.00016473,2]
[394532360,1763673031948,-2562.18455761,0.00016543,2]
[394532362,1763673031958,-22607.99185473,0.00016575,2]
[394532379,1763673032314,-1254.41808677,0.00016575,2]
[394532380,1763673032340,-604.94990291,0.00016575,2]
[394532381,1763673032362,-1347.38172906,0.00016575,2]
[394532382,1763673032378,-2251.1739612,0.00016575,2]
[394532383,1763673032402,-1020.54048194,0.00016575,2]
[394532384,1763673032416,-922.13592424,0.00016575,2]
[394532394,1763673037784,-3210.18805915,0.00016575,2]
[394532395,1763673037794,-321.80852521,0.0001659,2]
[394532396,1763673037839,-1530.61147479,0.0001659,2]
[394532397,1763673037855,-3190.34518103,0.00016627,2]
[394532398,1763673037866,-266.30116499,0.00016712,2]
[394532399,1763673037897,-2295.88339262,0.00016712,2]
[394532400,1763673037907,-150.0,0.000168,2]
[394532401,1763673037917,-2562.18455761,0.00016882,2]
[394532402,1763673037928,-164.11479541,0.000169,2]
[394532403,1763673037938,-5613.12357188,0.000169,2]
[394532404,1763673037947,-509.90200273,0.00016973,2]
[394532405,1763673037956,-500.0,0.00016973,2]
[394532407,1763673037966,-504.57461567,0.00016973,2]
[394532409,1763673037975,-501.0162978,0.00016973,2]
[394532410,1763673037984,-529.06851033,0.00016973,2]
[394532411,1763673037993,-500.0,0.00016973,2]
[394532412,1763673038002,-422.52168536,0.00016973,2]
[394532413,1763673038011,-500.0,0.00016973,2]
[394532414,1763673038020,-500.0,0.00016973,2]
[394532415,1763673038030,-500.0,0.00016973,2]
[394532416,1763673038039,-9596.9774017,0.0001699,2]
[394532417,1763673038048,-3141.4474871,0.0001699,2]
[394532418,1763673038057,-932.6528995,0.0001699,2]
[394532420,1763673038067,-366.3456831,0.00016999,2]
[394532421,1763673038076,-180.14397436,0.00016999,2]
[394532422,1763673038086,-365.16663071,0.00016999,2]
[394532424,1763673038095,-6618.46143778,0.00017,2]
[394532426,1763673038107,-733.75800295,0.00017,2]
[394532427,1763673038118,-4312.66566898,0.00017,2]
[394532428,1763673039992,-660.19309773,0.00017,2]
[394532429,1763673040004,-434.57,0.00017,2]
[394532430,1763673040015,-331.59489994,0.00017,2]
[394532432,1763673040551,386.02,0.00015958,2]
[394532437,1763673045156,-767.82289504,0.00017,2]
[394532439,1763673045918,-955.21962602,0.00017,2]
[394532440,1763673045981,-940.76339569,0.00017,2]
[394532441,1763673045992,-392.48365351,0.00017,2]
[394532442,1763673046013,-1495.67745425,0.00017,2]
[394532443,1763673046307,-453.0,0.00017,2]
[394532542,1763673127273,200.0,0.000159,5]
[394532621,1763673185503,5888.0,0.00035616,120]
[394532625,1763673188310,5888.0,0.00035616,120]
[394532626,1763673190904,2170.0,0.00035616,120]
[394532631,1763673201443,375555.44754842,0.0004201,120]
[394532679,1763673290970,166.66,0.0001516,2]
[394532681,1763673291171,166.66,0.00015479,2]
[394532682,1763673291366,166.66,0.00015798,2]
[394532684,1763673291578,166.66,0.00016118,2]
[394532693,1763673307754,500.0,0.00015957,2]
[394532785,1763673334215,549.56,7.956e-05,2]
[394532789,1763673334447,549.56,8.375e-05,2]
[394532791,1763673334703,549.56,8.793e-05,2]
[394532793,1763673334908,549.56,9.212e-05,2]
[394532794,1763673335117,549.56,9.631e-05,2]
[394532798,1763673335358,549.56,0.0001005,2]
[394532800,1763673335577,549.56,0.00010468,2]
[394532802,1763673335776,549.56,0.00010887,2]
[394532804,1763673335963,313.879,0.00011306,2]
[394532805,1763673335991,235.681,0.00011306,2]
[394532806,1763673336170,549.56,0.00011725,2]
[394532808,1763673336390,549.56,0.00012143,2]
[394532810,1763673336624,549.56,0.00012562,2]
[394532812,1763673336863,549.56,0.00012981,2]
[394532814,1763673337068,549.56,0.000134,2]
[394532815,1763673337268,549.56,0.00013818,2]
[394532817,1763673337478,426.43191686,0.00035616,120]
[394532818,1763673337511,549.56,0.00014237,2]
[394532819,1763673337727,549.56,0.00014656,2]
[394532821,1763673337954,549.56,0.00015075,2]
[394532822,1763673338161,549.56,0.00015493,2]
[394532823,1763673338359,549.56,0.00015912,2]
[394532983,1763673478312,250.0,0.00015938,2]
[394533011,1763673693688,1090.257,0.0001599,2]
[394533012,1763673734751,500.0,0.00042014,120]
[394533013,1763673771906,175.26,0.00012639,2]
[394533014,1763673773262,1374.04,0.00015786,2]
[394533015,1763673774066,256.51301565,0.00016115,2]
[394533016,1763673783687,150.57339248,0.00042014,30]
[394533017,1763673785832,250.0,0.00042014,120]
[394533018,1763673846319,250.0,0.00042014,120]
[394533019,1763673846963,250.0,0.00042014,120]
[394533021,1763673952578,573.09898435,0.00015,10]
[394533022,1763673952601,10000.01,0.00015,10]
[394533023,1763673952622,635.53471785,0.00015,10]
[394533024,1763673964880,426.43191686,0.00035616,120]
[394533025,1763673968710,250.0,0.00042014,120]
[394533026,1763673969536,250.0,0.00042014,120]
[394533027,1763673970123,250.0,0.00042014,120]
[394533029,1763673993623,83613.04487764,0.00042014,120]
[394533032,1763674025248,446.55630019,0.00042014,120]
[394533046,1763674067516,500.0,0.00016099,2]
[394533047,1763674084400,151.0,0.00016115,2]
[394533048,1763674084429,151.0,0.00016115,2]
[394533050,1763674091080,150.0,0.00042014,30]
[394533053,1763674098872,8562.47528215,0.00015,2]
[394533054,1763674098895,2503.86993569,0.00015,2]
[394533056,1763674101225,157.58760534,0.00016048,7]
[394533060,1763674110739,231.17654441,0.000154,2]
[394533062,1763674113415,3589.27,0.0001579,2]
[394533063,1763674117726,25223.08250947,0.00042014,30]
[394533066,1763674133838,446.0,0.00035616,120]
[394533067,1763674148060,3518.10591456,7.945e-05,2]
[394533068,1763674148083,6501.68267744,7.945e-05,2]
[394533069,1763674150020,398.28895222,0.00016138,2]
[394533071,1763674175200,32000.0,0.00042014,31]
[394533072,1763674192604,3100.03837034,0.00016138,2]
[394533073,1763674192629,10000.01,0.00016138,2]
[394533074,1763674192650,890.40595917,0.00016138,2]
[394533086,1763674231931,-238.57,0.00016199,2]
[394533088,1763674231940,-200.0,0.00016199,2]
[394533090,1763674231950,-150.0,0.000162,2]
[394533091,1763674231959,-150.0,0.000162,2]
[394533092,1763674231968,-150.0,0.000162,2]
[394533093,1763674231978,-150.0,0.000162,2]
[394533094,1763674231988,-150.0,0.000162,2]
[394533095,1763674231998,-225.12187473,0.000162,2]
[394533096,1763674232007,-151.0,0.00016213,2]
[394533097,1763674232017,-300.0,0.00016215,2]
[394533098,1763674232027,-1200.0,0.00016215,2]
[394533099,1763674232036,-155.0,0.00016215,2]
[394533100,1763674232045,-300.0,0.00016215,2]
[394533101,1763674232055,-300.0,0.00016215,2]
[394533102,1763674232064,-133078.56048546,0.00016216,2]
[394533103,1763674232076,-33082.51476997,0.00016216,2]
[394533104,1763674232087,-116205.67447056,0.00016216,2]
[394533105,1763674232107,-3283.63237437,0.00016216,2]
[394533106,1763674232118,-990.0000006,0.00016216,2]
[394533107,1763674232163,-2205.46447383,0.00016216,2]
[394533113,1763674232591,-5000.0,0.00016216,2]
[394533121,1763674237935,-1179.84322754,0.00016216,2]
[394533122,1763674237947,-311.74846854,0.00016216,2]
[394533123,1763674237995,-1893.48,0.00016216,2]
[394533124,1763674238006,-510.09411734,0.00016216,2]
[394533125,1763674238018,-622.08775657,0.00016216,2]
[394533126,1763674238030,-599.24625432,0.00016216,2]
[394533127,1763674238042,-356.71,0.00016216,2]
[394533128,1763674238057,-14306.13816797,0.00016216,2]
[394533129,1763674238068,-465.96771277,0.00016216,2]
[394533130,1763674238116,-17604.28231714,0.00016216,2]
[394533133,1763674240120,-255.61664149,0.00016215,2]
[394533134,1763674240130,-201.3727349,0.00016216,2]
[394533135,1763674240142,-4076.36320373,0.00016216,2]
[394533136,1763674240153,-414.57912711,0.00016216,2]
[394533137,1763674240165,-8621.85720774,0.00016216,2]
[394533138,1763674240180,-8947.21879473,0.00016216,2]
[394533139,1763674240194,-8943.78386462,0.00016216,2]
[394533140,1763674240206,-9077.54866152,0.00016216,2]
[394533141,1763674240217,-8943.84023489,0.00016216,2]
[394533142,1763674240311,-87723.73937378,0.00016216,2]
[394533143,1763674240320,-166.67,0.00016238,2]
[394533144,1763674240331,-232.13140581,0.00016273,2]
[394533145,1763674240341,-500.0,0.00016315,2]
[394533146,1763674240351,-173.74,0.00016315,2]
[394533147,1763674240361,-3007.2515,0.00016316,2]
[394533148,1763674240370,-5975.0616,0.00016316,2]
[394533149,1763674240380,-1000.0,0.00016316,2]
[394533150,1763674240390,-13990.45432943,0.00016334,2]
[394533151,1763674240399,-398.28895216,0.0001639,2]
[394533152,1763674240408,-297.98841308,0.000164,2]
[394533153,1763674240421,-166.66,0.00016437,2]
[394533154,1763674240431,-13990.45432943,0.0001653,2]
[394533155,1763674240441,-398.28895216,0.00016641,2]
[394533156,1763674240453,-200.0,0.00016649,2]
[394533157,1763674240464,-207.41,0.00016697,2]
[394533158,1763674240474,-13990.45432943,0.00016725,2]
[394533159,1763674240483,-61538.2668097,0.0001674,2]
[394533160,1763674240493,-3301.9781505,0.0001674,2]
[394533161,1763674240503,-25580.9814581,0.0001674,2]
[394533163,1763674240512,-439.2762445,0.0001674,2]
[394533165,1763674240521,-151.0,0.0001674,2]
[394533167,1763674240531,-238.405969,0.0001674,2]
[394533168,1763674240540,-151.0,0.0001674,2]
[394533171,1763674240551,-7115.1053923,0.0001674,2]
[394533172,1763674240560,-166.66,0.00016756,2]
[394533174,1763674240571,-500.0,0.00016773,2]
[394533176,1763674240580,-300.0,0.00016773,2]
[394533178,1763674240590,-500.0,0.00016773,2]
[394533180,1763674240599,-151.0,0.00016777,2]
[394533182,1763674240609,-155.451992,0.00016777,2]
[394533185,1763674240618,-398.28895216,0.00016893,2]
[394533187,1763674240628,-359.09083166,0.000169,2]
[394533189,1763674240637,-13990.45432943,0.00016921,2]
[394533190,1763674240646,-500.0,0.00016973,2]
[394533192,1763674240656,-508.46428108,0.00016973,2]
[394533194,1763674240665,-443.44977622,0.00016973,2]
[394533196,1763674240675,-485.54879562,0.00016973,2]
[394533198,1763674240685,-733.03272732,0.00016983,2]
[394533200,1763674240695,-151.0,0.00016986,2]
[394533202,1763674240704,-84960.86,0.00016986,2]
[394533204,1763674240713,-157.06168235,0.0001699,2]
[394533206,1763674240722,-3074.0,0.00017,2]
[394533208,1763674240732,-549351.84041397,0.00017,2]
[394533210,1763674240741,-250.0,0.00017,2]
[394533212,1763674240751,-151.0,0.00017,2]
[394533214,1763674240760,-151.0,0.00017,2]
[394533215,1763674240773,-151.0,0.00017,2]
[394533217,1763674240783,-825151.27869275,0.00017,2]
[394533220,1763674240799,-612.5,0.00017,2]
[394533252,1763674245657,-16876.74164723,0.00017,2]
[394533253,1763674245668,-452.45198606,0.00017,2]
[394533254,1763674245716,-35000.0,0.00017,2]
[394533255,1763674245728,-700.53782515,0.00017,2]
[394533261,1763674246180,-253.52,0.00017,2]
[394533262,1763674246192,-476.81484365,0.00017,2]
[394533263,1763674246237,-264.57538388,0.00017,2]
[394533264,1763674246249,-12382.69476121,0.00017,2]
[394533265,1763674246299,-421.265,0.00017,2]
[394533266,1763674246474,-8730.0,0.00017,2]
[394533267,1763674246485,-511.93163605,0.00017,2]
[394533268,1763674246496,-25951.64482712,0.00017,2]
[394533269,1763674246541,-2709.64385445,0.00017,2]
[394533274,1763674266659,250.0,0.00042014,120]
[394533275,1763674267728,250.0,0.00042014,120]
[394533276,1763674268848,300.0,0.00042014,120]
[394533277,1763674269272,347.64330208,0.00042014,120]
[394533278,1763674269468,311.1,0.00042014,120]
[394533279,1763674270098,322.6107,0.00042014,120]
[394533280,1763674270894,334.5472959,0.00042014,120]
[394533281,1763674271215,500.0,0.00042014,120]
[394533282,1763674271348,346.92554585,0.00042014,120]
[394533283,1763674271851,500.0,0.00042014,120]
[394533284,1763674271955,359.76179104,0.00042014,120]
[394533285,1763674272466,500.0,0.00042014,120]
[394533286,1763674272586,359.76179104,0.00042014,120]
[394533287,1763674273082,500.0,0.00042014,120]
[394533288,1763674273678,500.0,0.00042014,120]
[394533289,1763674274287,500.0,0.00042014,120]
[394533290,1763674274505,250.0,0.00042014,120]
[394533291,1763674274957,500.0,0.00042014,120]
[394533292,1763674275598,500.0,0.00042014,120]
[394533293,1763674276863,200.0,0.00042014,30]
[394533294,1763674277469,207.4,0.00042014,30]
[394533295,1763674278159,215.0738,0.00042014,30]
[394533296,1763674278187,151.0,0.00016001,2]
[394533297,1763674278823,223.0315306,0.00042014,30]
[394533298,1763674278854,156.587,0.00016001,2]
[394533299,1763674279452,231.28369723,0.00042014,30]
[394533300,1763674279481,312.66187095,0.00016001,2]
[394533301,1763674280050,239.84119403,0.00042014,30]
[394533302,1763674280709,248.71531821,0.00042014,30]
[394533303,1763674281389,257.91778498,0.00042014,30]
[394533304,1763674281998,267.46074303,0.00042014,30]
[394533305,1763674282648,277.35679052,0.00042014,30]
[394533306,1763674283271,287.61899177,0.00042014,30]
[394533307,1763674283938,298.26089446,0.00042014,30]
[394533308,1763674284606,309.29654756,0.00042014,30]
[394533309,1763674285255,309.29654756,0.00042014,30]
[394533310,1763674291629,8489.35516988,0.00016116,2]
[394533311,1763674291654,10000.01,0.00016116,2]
[394533312,1763674291679,10000.01,0.00016116,2]
[394533313,1763674291705,10000.01,0.00016116,2]
[394533314,1763674291730,10000.01,0.00016116,2]
[394533315,1763674291754,10000.01,0.00016116,2]
[394533316,1763674291779,10000.01,0.00016116,2]
[394533317,1763674291813,10000.01,0.00016116,2]
[394533318,1763674291839,10000.01,0.00016116,2]
[394533319,1763674291866,10000.01,0.00016116,2]
[394533320,1763674291901,661510.55483012,0.00016116,2]
[394533321,1763674294117,250.0,0.00042014,120]
[394533322,1763674294887,250.0,0.00042014,120]
[394533324,1763674325236,250.0,0.00042014,120]
[394533325,1763674331256,337.84606576,0.00042014,120]
[394533326,1763674331362,236.86482066,0.00042014,120]
[394533327,1763674411670,-1000.0,0.0001629,2]
[394533328,1763674412575,-1000.0,0.0001629,2]
[394533329,1763674413432,-1000.0,0.0001629,2]
[394533330,1763674414487,-1000.0,0.0001629,2]
[394533331,1763674438925,7032.6929,0.00016116,2]
[394533776,1763674748055,515.14191363,0.0001617,2]
[394533781,1763674751975,200.0,0.00042014,30]
[394533784,1763674752600,207.4,0.00042014,30]
[394533787,1763674753246,215.0738,0.00042014,30]
[394533790,1763674753877,215.0738,0.00042014,30]
[394533799,1763674759390,151.0,0.00041996,120]
[394533853,1763674774657,176.73782147,0.0001613,2]
[394533914,1763674815318,200.0,0.00041996,30]
[394533915,1763674815925,207.4,0.00041996,30]
[394533918,1763674816564,215.0738,0.00041996,30]
[394533922,1763674817168,223.0315306,0.00041996,30]
[394533925,1763674817815,231.28369723,0.00041996,30]
[394533929,1763674818441,239.84119403,0.00041996,30]
[394533932,1763674819083,248.71531821,0.00041996,30]
[394533935,1763674819679,257.91778498,0.00041996,30]
[394533938,1763674820299,267.46074303,0.00041996,30]
[394533940,1763674820468,7274.36,0.00016103,2]
[394533944,1763674820916,277.35679052,0.00041996,30]
[394533947,1763674821511,287.61899177,0.00041996,30]
[394534054,1763674865369,189.63448503,0.00041996,30]
[394534073,1763674885264,426.43191686,0.00035616,120]
[394534093,1763674936552,300.0,0.00041996,120]
[394534109,1763674948482,228.315147,0.00041996,30]
[394534156,1763674967338,1500.0,0.00016136,2]
[394534166,1763674996288,250.0,0.00041996,120]
[394534183,1763675047277,150.0,0.00016066,2]
[394534184,1763675047511,150.0,0.00016066,120]
[394534185,1763675050043,225.26928822,0.0001613,2]
[394534245,1763675099645,465.0,0.00035616,120]
[394534250,1763675231444,305.87,0.00016052,2]
[394534251,1763675250107,-605.92505881,0.00017999,5]
[394534252,1763675250153,-56043.0,0.0002,7]
[394534253,1763675250184,-13275.9033852,0.0002,5]
[394534254,1763675250217,-1000.0,0.0002,7]
[394534255,1763675250249,-426.43191686,0.0002,7]
[394534256,1763675250289,-262.36,0.00022,7]
[394534257,1763675250323,-12383.3,0.00022,7]
[394534258,1763675250357,-629.69125877,0.00023,7]
[394534259,1763675250389,-11589.28506353,0.00023333,7]
[394534260,1763675250422,-1000.0,0.00023333,7]
[394534261,1763675250459,-12383.3,0.000241,7]
[394534262,1763675250493,-425.42,0.00024658,30]
[394534263,1763675250524,-151.0,0.00024658,7]
[394534264,1763675250556,-151.0,0.00024658,7]
[394534265,1763675250589,-151.0,0.00024658,7]
[394534266,1763675250622,-306.044566,0.00024658,7]
[394534267,1763675250652,-306.044566,0.00024658,7]
[394534268,1763675250680,-306.044566,0.00024658,7]
[394534269,1763675250710,-306.044566,0.00024658,7]
[394534270,1763675250737,-306.044566,0.00024658,7]
[394534271,1763675250765,-306.044566,0.00024658,7]
[394534272,1763675250793,-306.044566,0.00024658,7]
[394534273,1763675250821,-306.044566,0.00024658,7]
[394534274,1763675250850,-306.044566,0.00024658,7]
[394534275,1763675250880,-306.044566,0.00024658,7]
[394534276,1763675250910,-306.044566,0.00024658,7]
[394534277,1763675250939,-306.044566,0.00024658,7]
[394534278,1763675250970,-306.044566,0.00024658,7]
[394534279,1763675251001,-306.044566,0.00024658,7]
[394534280,1763675251032,-306.044566,0.00024658,7]
[394534281,1763675251065,-306.044566,0.00024658,7]
[394534282,1763675251096,-306.044566,0.00024658,7]
[394534283,1763675251127,-306.044566,0.00024658,7]
[394534284,1763675251155,-306.044566,0.00024658,7]
[394534285,1763675251186,-306.044567,0.00024658,7]
[394534286,1763675251215,-151.0,0.00024658,7]
[394534287,1763675251244,-151.0,0.00024658,7]
[394534288,1763675251274,-151.0,0.00024658,7]
[394534289,1763675251305,-151.0,0.00024658,7]
[394534290,1763675251333,-151.0,0.00024658,7]
[394534291,1763675251362,-151.0,0.00024658,7]
[394534292,1763675251390,-151.0,0.00024658,7]
[394534293,1763675251419,-151.0,0.00024658,7]
[394534294,1763675251447,-151.0,0.00024658,7]
[394534295,1763675251475,-151.0,0.00024658,7]
[394534296,1763675251503,-151.0,0.00024658,7]
[394534297,1763675251532,-151.0,0.00024658,7]
[394534298,1763675251562,-151.0,0.00024658,7]
[394534299,1763675251591,-151.0,0.00024658,7]
[394534300,1763675251620,-151.0,0.00024658,7]
[394534301,1763675251650,-151.0,0.00024658,7]
[394534302,1763675251678,-151.0,0.00024658,7]
[394534303,1763675251707,-151.0,0.00024658,7]
[394534304,1763675251735,-151.0,0.00024658,7]
[394534305,1763675251764,-151.0,0.00024658,7]
[394534306,1763675251795,-208.081048,0.00024658,7]
[394534307,1763675251824,-151.0,0.00024658,7]
[394534308,1763675251853,-151.0,0.00024658,7]
[394534309,1763675251883,-151.0,0.00024658,7]
[394534310,1763675251912,-151.0,0.00024658,7]
[394534311,1763675251942,-151.0,0.00024658,7]
[394534312,1763675251972,-151.0,0.00024658,7]
[394534313,1763675252002,-151.0,0.00024658,7]
[394534314,1763675252033,-193.316576,0.00024658,7]
[394534315,1763675252062,-151.0,0.00024658,7]
[394534316,1763675252093,-151.0,0.00024658,7]
[394534317,1763675252125,-151.0,0.00024658,7]
[394534318,1763675252303,-151.0,0.00024658,7]
[394534319,1763675252335,-151.0,0.00024658,7]
[394534320,1763675252365,-151.0,0.00024658,7]
[394534321,1763675252396,-151.0,0.00024658,7]
[394534322,1763675252427,-151.0,0.00024658,7]
[394534323,1763675252461,-151.0,0.00024658,7]
[394534324,1763675252491,-151.0,0.00024658,7]
[394534325,1763675252520,-151.0,0.00024658,7]